[Event "*** Titled Tuesday 3|2 Blitz"]
[Site "Chess.com"]
[Date "2015.05.05"]
[Round "7"]
[White "9ShMat2"]
[Black "GMHess"]
[Result "1-0"]
[WhiteElo "2455"]
[BlackElo "2517"]
[TimeControl "180+2"]
[EndTime "12:34:14 PDT"]
[Termination "9ShMat2 won by resignation"]

1. e4 {[%clk 0:03:01.9]} 1... g6 {[%clk 0:02:40.6]} 2. d4 {[%clk 0:03:01.7]}
2... Bg7 {[%clk 0:02:42.5]} 3. Nc3 {[%clk 0:03:01.9]} 3... d6 {[%clk 0:02:43.7]}
4. Be3 {[%clk 0:03:02.2]} 4... c6 {[%clk 0:02:43.5]} 5. Qd2 {[%clk 0:03:02.5]}
5... Nd7 {[%clk 0:02:45]} 6. f4 {[%clk 0:02:59.9]} 6... b5 {[%clk 0:02:45.2]} 7.
Nf3 {[%clk 0:02:58.1]} 7... Ngf6 {[%clk 0:02:38.9]} 8. Bd3 {[%clk 0:02:53.9]}
8... a6 {[%clk 0:02:30.8]} 9. e5 {[%clk 0:02:47.5]} 9... b4 {[%clk 0:02:15.3]}
10. Ne4 {[%clk 0:02:41.7]} 10... Nxe4 {[%clk 0:02:13.3]} 11. Bxe4 {[%clk
0:02:43.6]} 11... d5 {[%clk 0:02:11.9]} 12. Bd3 {[%clk 0:02:44.9]} 12... Rb8
{[%clk 0:01:55.6]} 13. O-O {[%clk 0:02:36.8]} 13... e6 {[%clk 0:01:54.9]} 14.
Kh1 {[%clk 0:02:24.2]} 14... a5 {[%clk 0:01:42.3]} 15. b3 {[%clk 0:02:13.7]}
15... Bf8 {[%clk 0:01:32.6]} 16. c3 {[%clk 0:02:01.2]} 16... Be7 {[%clk
0:01:26.7]} 17. c4 {[%clk 0:01:52.9]} 17... dxc4 {[%clk 0:01:10.4]} 18. bxc4
{[%clk 0:01:51.5]} 18... Bb7 {[%clk 0:01:04.6]} 19. Rad1 {[%clk 0:01:49.7]}
19... Nb6 {[%clk 0:00:58.2]} 20. Ng5 {[%clk 0:01:39.2]} 20... Na4 {[%clk
0:00:41.4]} 21. Ne4 {[%clk 0:01:32.3]} 21... O-O {[%clk 0:00:42.2]} 22. Qc2
{[%clk 0:01:22.9]} 22... Nb6 {[%clk 0:00:38.1]} 23. Qf2 {[%clk 0:01:23.2]} 23...
Na4 {[%clk 0:00:36.4]} 24. c5 {[%clk 0:01:17.8]} 24... Qd5 {[%clk 0:00:20.1]}
25. Qc2 {[%clk 0:01:16.8]} 25... Nc3 {[%clk 0:00:20.9]} 26. Nxc3 {[%clk
0:01:15.1]} 26... bxc3 {[%clk 0:00:22.8]} 27. Qxc3 {[%clk 0:01:13.7]} 27... Qxa2
{[%clk 0:00:21.9]} 28. Ra1 {[%clk 0:01:07.8]} 28... Qd5 {[%clk 0:00:22.3]} 29.
Rxa5 {[%clk 0:01:09]} 29... Rfd8 {[%clk 0:00:20]} 30. Rb1 {[%clk 0:01:07.1]}
30... Ba8 {[%clk 0:00:16]} 31. Rxb8 {[%clk 0:01:08.1]} 31... Rxb8 {[%clk
0:00:17.9]} 32. Ra7 {[%clk 0:01:05.1]} 32... Qd8 {[%clk 0:00:13]} 33. h3 {[%clk
0:00:56.9]} 33... Bb7 {[%clk 0:00:12.3]} 34. Bf2 {[%clk 0:00:46.5]} 34... Bc8
{[%clk 0:00:12]} 35. Be4 {[%clk 0:00:40.3]} 35... Bd7 {[%clk 0:00:07.2]} 36. Qa5
{[%clk 0:00:40.9]} 36... Qxa5 {[%clk 0:00:06.2]} 37. Rxa5 {[%clk 0:00:42.2]}
37... Be8 {[%clk 0:00:05.9]} 38. Ra6 {[%clk 0:00:36.8]} 38... Rc8 {[%clk
0:00:06.5]} 39. g4 {[%clk 0:00:35.8]} 39... f5 {[%clk 0:00:05.3]} 40. exf6
{[%clk 0:00:33]} 40... Bxf6 {[%clk 0:00:06.2]} 41. Kg2 {[%clk 0:00:34.9]} 41...
Kf7 {[%clk 0:00:06.9]} 42. Kf3 {[%clk 0:00:35.1]} 42... Bd7 {[%clk 0:00:07.5]}
43. Ke3 {[%clk 0:00:29.5]} 43... Ke8 {[%clk 0:00:08.1]} 44. Kd3 {[%clk
0:00:28.8]} 44... Ke7 {[%clk 0:00:08.8]} 45. g5 {[%clk 0:00:21.1]} 45... Bg7
{[%clk 0:00:09.4]} 46. h4 {[%clk 0:00:20.9]} 46... Rf8 {[%clk 0:00:09.3]} 47.
Be3 {[%clk 0:00:20.8]} 47... Rc8 {[%clk 0:00:10.8]} 48. Kc4 {[%clk 0:00:21.3]}
48... Ke8 {[%clk 0:00:11.1]} 49. h5 {[%clk 0:00:20.2]} 49... gxh5 {[%clk
0:00:11.3]} 50. Bxh7 {[%clk 0:00:21.1]} 50... h4 {[%clk 0:00:13]} 51. Ra2 {[%clk
0:00:21.3]} 51... Ke7 {[%clk 0:00:14]} 52. Rh2 {[%clk 0:00:21.3]} 52... h3
{[%clk 0:00:14.9]} 53. Rxh3 {[%clk 0:00:22]} 53... Ra8 {[%clk 0:00:15.7]} 54.
Bc2 {[%clk 0:00:22.1]} 54... Ra3 {[%clk 0:00:16.1]} 55. Bb3 {[%clk 0:00:21.9]}
55... Ra1 {[%clk 0:00:15.6]} 56. Rh2 {[%clk 0:00:20.8]} 56... Re1 {[%clk
0:00:16.2]} 57. Kd3 {[%clk 0:00:21.9]} 57... Be8 {[%clk 0:00:15.2]} 58. Kd2
{[%clk 0:00:18.9]} 58... Rb1 {[%clk 0:00:15]} 59. Bc2 {[%clk 0:00:20.1]} 59...
Ra1 {[%clk 0:00:14.8]} 60. f5 {[%clk 0:00:18.1]} 60... exf5 {[%clk 0:00:14.6]}
61. Bxf5 {[%clk 0:00:16.3]} 61... Ra2+ {[%clk 0:00:15]} 62. Bc2 {[%clk
0:00:17.7]} 62... Bg6 {[%clk 0:00:15.9]} 63. Kc1 {[%clk 0:00:19]} 63... Bxc2
{[%clk 0:00:15.9]} 64. Rxc2 {[%clk 0:00:20.9]} 64... Ra3 {[%clk 0:00:17.4]} 65.
Kd2 {[%clk 0:00:21.5]} 65... Ke6 {[%clk 0:00:18]} 66. Rb2 {[%clk 0:00:21.3]}
66... Kd5 {[%clk 0:00:18.9]} 67. Rb7 {[%clk 0:00:22.5]} 67... Bf8 {[%clk
0:00:15.4]} 68. Rf7 {[%clk 0:00:22.1]} 68... Ke4 {[%clk 0:00:13.4]} 69. Rf4+
{[%clk 0:00:23.2]} 69... Kd5 {[%clk 0:00:13.8]} 70. Rxf8 {[%clk 0:00:25.1]} 1-0

[Event "*** Titled Tuesday 3|2 Blitz"]
[Site "Chess.com"]
[Date "2015.05.05"]
[Round "7"]
[White "Boryboy"]
[Black "jcibarra"]
[Result "0-1"]
[WhiteElo "2431"]
[BlackElo "2516"]
[TimeControl "180+2"]
[EndTime "12:35:13 PDT"]
[Termination "jcibarra won by resignation"]

1. d4 {[%clk 0:03:01.9]} 1... Nf6 {[%clk 0:03:00.6]} 2. Nf3 {[%clk 0:03:01.7]}
2... g6 {[%clk 0:03:01.3]} 3. g3 {[%clk 0:03:02.8]} 3... Bg7 {[%clk 0:03:02.1]}
4. Bg2 {[%clk 0:03:04.3]} 4... O-O {[%clk 0:03:03.7]} 5. O-O {[%clk 0:03:06.2]}
5... d6 {[%clk 0:03:05.1]} 6. c4 {[%clk 0:02:59.8]} 6... Nc6 {[%clk 0:03:05.9]}
7. Nc3 {[%clk 0:02:55.1]} 7... Bf5 {[%clk 0:03:06.7]} 8. d5 {[%clk 0:02:46]}
8... Na5 {[%clk 0:03:07]} 9. Nd4 {[%clk 0:02:44.6]} 9... Bd7 {[%clk 0:03:07.2]}
10. b3 {[%clk 0:02:45]} 10... c5 {[%clk 0:03:07.8]} 11. dxc6 {[%clk 0:02:43.2]}
11... bxc6 {[%clk 0:03:08.6]} 12. Bb2 {[%clk 0:02:41]} 12... Rb8 {[%clk
0:03:08.5]} 13. Rb1 {[%clk 0:02:39.8]} 13... c5 {[%clk 0:03:07.6]} 14. Nc2
{[%clk 0:02:39.9]} 14... Nc6 {[%clk 0:02:56.1]} 15. Ne3 {[%clk 0:02:33.5]} 15...
Qc8 {[%clk 0:02:50.9]} 16. Ncd5 {[%clk 0:02:29]} 16... Nxd5 {[%clk 0:02:36.6]}
17. Nxd5 {[%clk 0:02:23.6]} 17... Bxb2 {[%clk 0:02:30.7]} 18. Rxb2 {[%clk
0:02:25.5]} 18... Bh3 {[%clk 0:02:29.1]} 19. Qd2 {[%clk 0:02:18.8]} 19... Bxg2
{[%clk 0:02:29.4]} 20. Kxg2 {[%clk 0:02:20.7]} 20... Qb7 {[%clk 0:02:28.3]} 21.
Kg1 {[%clk 0:02:19.1]} 21... Ne5 {[%clk 0:02:23.4]} 22. Rc2 {[%clk 0:02:15.7]}
22... e6 {[%clk 0:02:15.9]} 23. Nf6+ {[%clk 0:02:10.4]} 23... Kg7 {[%clk
0:02:16.6]} 24. Qg5 {[%clk 0:02:07.2]} 24... Nd7 {[%clk 0:02:05.3]} 25. Ng4
{[%clk 0:01:43.6]} 25... f5 {[%clk 0:01:59.8]} 26. Ne3 {[%clk 0:01:38.7]} 26...
Nf6 {[%clk 0:01:50.4]} 27. Ng2 {[%clk 0:01:13.6]} 27... a5 {[%clk 0:01:44.9]}
28. Rd1 {[%clk 0:01:14.2]} 28... Rbd8 {[%clk 0:01:41.1]} 29. f3 {[%clk
0:01:06.5]} 29... Qc6 {[%clk 0:01:26.9]} 30. Nf4 {[%clk 0:01:02.8]} 30... Rfe8
{[%clk 0:01:23.3]} 31. h4 {[%clk 0:01:02.7]} 31... Kf7 {[%clk 0:01:09.1]} 32.
Rcd2 {[%clk 0:00:52.2]} 32... Rg8 {[%clk 0:01:06.9]} 33. Nh3 {[%clk 0:00:47]}
33... Rd7 {[%clk 0:01:00.5]} 34. Qe3 {[%clk 0:00:47.8]} 34... Re8 {[%clk
0:00:54.8]} 35. Ng5+ {[%clk 0:00:48.5]} 35... Kg8 {[%clk 0:00:56.1]} 36. Qc3
{[%clk 0:00:39.2]} 36... e5 {[%clk 0:00:54]} 37. Qxa5 {[%clk 0:00:37.9]} 37...
h6 {[%clk 0:00:50.1]} 38. Nh3 {[%clk 0:00:39]} 38... Nh5 {[%clk 0:00:39.2]} 39.
Qb5 {[%clk 0:00:35.3]} 39... Qc7 {[%clk 0:00:30.9]} 40. Kg2 {[%clk 0:00:33]}
40... Rb8 {[%clk 0:00:30.6]} 41. Qa6 {[%clk 0:00:28.5]} 41... Rb6 {[%clk
0:00:29.6]} 42. Qa8+ {[%clk 0:00:28.1]} 42... Kg7 {[%clk 0:00:30.7]} 43. Qd5
{[%clk 0:00:27.7]} 43... Nf6 {[%clk 0:00:21.6]} 44. Qd3 {[%clk 0:00:28]} 44...
Qb7 {[%clk 0:00:20.8]} 45. Kg1 {[%clk 0:00:27.5]} 45... Ra6 {[%clk 0:00:18.5]}
46. Qc3 {[%clk 0:00:24.4]} 46... Qa7 {[%clk 0:00:18.7]} 47. f4 {[%clk
0:00:16.2]} 47... Ne4 {[%clk 0:00:18.3]} 48. Qe3 {[%clk 0:00:08.3]} 48... Nxd2
{[%clk 0:00:18.7]} 49. Rxd2 {[%clk 0:00:10.2]} 49... e4 {[%clk 0:00:16.8]} 50.
a4 {[%clk 0:00:09.7]} 50... Rb6 {[%clk 0:00:14.9]} 51. Nf2 {[%clk 0:00:09.4]}
51... Qb7 {[%clk 0:00:15.2]} 52. Qc3+ {[%clk 0:00:10.7]} 52... Kh7 {[%clk
0:00:16.2]} 53. h5 {[%clk 0:00:08.7]} 53... d5 {[%clk 0:00:15.6]} 54. cxd5
{[%clk 0:00:07.9]} 54... Rxd5 {[%clk 0:00:15.8]} 55. Rxd5 {[%clk 0:00:06.7]}
55... Qxd5 {[%clk 0:00:17.7]} 56. a5 {[%clk 0:00:04.7]} 56... Rd6 {[%clk
0:00:15.5]} 57. hxg6+ {[%clk 0:00:04.8]} 57... Rxg6 {[%clk 0:00:16.1]} 58. Kh2
{[%clk 0:00:05]} 58... Qd4 {[%clk 0:00:16.6]} 59. Qe1 {[%clk 0:00:04.4]} 59...
Qe3 {[%clk 0:00:17.1]} 60. Nh3 {[%clk 0:00:05.7]} 60... Qxb3 {[%clk 0:00:17.5]}
61. a6 {[%clk 0:00:06.7]} 61... Rxa6 {[%clk 0:00:17.6]} 62. Qd2 {[%clk
0:00:08.3]} 62... Qf7 {[%clk 0:00:16.6]} 63. Qd8 {[%clk 0:00:09.1]} 63... Rg6
{[%clk 0:00:17.4]} 64. Qh4 {[%clk 0:00:10.2]} 64... Kg7 {[%clk 0:00:17.9]} 65.
Qd8 {[%clk 0:00:11.5]} 65... Rg4 {[%clk 0:00:18.3]} 66. Qd6 {[%clk 0:00:11.7]}
66... c4 {[%clk 0:00:18.5]} 67. Qe5+ {[%clk 0:00:12.1]} 67... Kh7 {[%clk
0:00:19.9]} 68. Qc5 {[%clk 0:00:12.1]} 68... Qg6 {[%clk 0:00:19.7]} 69. Qe7+
{[%clk 0:00:07.8]} 69... Qg7 {[%clk 0:00:20.4]} 70. Qe6 {[%clk 0:00:09.5]} 70...
Qg6 {[%clk 0:00:15.9]} 71. Qd7+ {[%clk 0:00:10]} 71... Kg8 {[%clk 0:00:15.6]}
72. Qc8+ {[%clk 0:00:10.3]} 72... Kg7 {[%clk 0:00:17.1]} 73. Qxc4 {[%clk
0:00:09.8]} 73... Rxg3 {[%clk 0:00:18.2]} 74. Qc7+ {[%clk 0:00:11.1]} 74... Kh8
{[%clk 0:00:19.5]} 75. Qd8+ {[%clk 0:00:11.6]} 75... Kh7 {[%clk 0:00:19.8]} 76.
Qe7+ {[%clk 0:00:12.8]} 76... Qg7 {[%clk 0:00:19.3]} 77. Ng5+ {[%clk 0:00:10.2]}
77... Rxg5 {[%clk 0:00:19.2]} 0-1

[Event "*** Titled Tuesday 3|2 Blitz"]
[Site "Chess.com"]
[Date "2015.05.05"]
[Round "7"]
[White "jup1978"]
[Black "amaidel"]
[Result "1-0"]
[WhiteElo "2159"]
[BlackElo "2274"]
[TimeControl "180+2"]
[EndTime "12:36:58 PDT"]
[Termination "jup1978 won by resignation"]

1. e4 {[%clk 0:03:01.9]} 1... e5 {[%clk 0:03:00.7]} 2. Nf3 {[%clk 0:03:02.1]}
2... Nc6 {[%clk 0:03:01.9]} 3. Bb5 {[%clk 0:03:02.6]} 3... a6 {[%clk 0:03:02.9]}
4. Ba4 {[%clk 0:03:02.9]} 4... Nf6 {[%clk 0:03:04.2]} 5. d3 {[%clk 0:03:03.8]}
5... b5 {[%clk 0:03:02.8]} 6. Bb3 {[%clk 0:03:04.7]} 6... d6 {[%clk 0:03:03.9]}
7. a4 {[%clk 0:03:03.6]} 7... bxa4 {[%clk 0:03:01.5]} 8. Bxa4 {[%clk 0:03:04.2]}
8... Bd7 {[%clk 0:03:02.3]} 9. O-O {[%clk 0:03:04.1]} 9... g6 {[%clk 0:03:03.1]}
10. Nc3 {[%clk 0:03:04.7]} 10... Bg7 {[%clk 0:03:03.8]} 11. Bg5 {[%clk
0:03:03.4]} 11... h6 {[%clk 0:03:03.7]} 12. Bxf6 {[%clk 0:03:03.7]} 12... Bxf6
{[%clk 0:03:04.5]} 13. Nd5 {[%clk 0:03:04.8]} 13... Bg7 {[%clk 0:03:05.3]} 14.
c3 {[%clk 0:03:01.5]} 14... O-O {[%clk 0:03:05.5]} 15. h3 {[%clk 0:02:59.2]}
15... Kh7 {[%clk 0:03:00]} 16. Nd2 {[%clk 0:02:56.2]} 16... Ne7 {[%clk
0:02:47.7]} 17. Nxe7 {[%clk 0:02:51.3]} 17... Qxe7 {[%clk 0:02:48.3]} 18. Bxd7
{[%clk 0:02:52.8]} 18... Qxd7 {[%clk 0:02:49.2]} 19. Qa4 {[%clk 0:02:54.3]}
19... Qb5 {[%clk 0:02:43.8]} 20. Nc4 {[%clk 0:02:43.6]} 20... f5 {[%clk
0:02:38.3]} 21. f3 {[%clk 0:02:42.8]} 21... fxe4 {[%clk 0:02:29.7]} 22. dxe4
{[%clk 0:02:39.6]} 22... Rab8 {[%clk 0:02:10.4]} 23. Kh1 {[%clk 0:02:19.3]}
23... Qc5 {[%clk 0:02:08.6]} 24. Rad1 {[%clk 0:02:08.1]} 24... Qb5 {[%clk
0:02:06.4]} 25. Qxb5 {[%clk 0:02:06.7]} 25... axb5 {[%clk 0:02:07]} 26. Ne3
{[%clk 0:02:07.6]} 26... h5 {[%clk 0:01:54.2]} 27. Ra1 {[%clk 0:02:07.3]} 27...
Ra8 {[%clk 0:01:34.6]} 28. Nd5 {[%clk 0:02:03.3]} 28... c6 {[%clk 0:01:24.8]}
29. Ne7 {[%clk 0:01:59.9]} 29... c5 {[%clk 0:01:25.8]} 30. Nd5 {[%clk
0:01:59.2]} 30... Bh6 {[%clk 0:01:25.1]} 31. Kg1 {[%clk 0:01:54.7]} 31... Ra4
{[%clk 0:01:23.3]} 32. Nb6 {[%clk 0:01:53]} 32... Be3+ {[%clk 0:01:20.1]} 33.
Kh2 {[%clk 0:01:49.4]} 33... Rxa1 {[%clk 0:01:18.5]} 34. Rxa1 {[%clk 0:01:51.3]}
34... c4 {[%clk 0:01:11.2]} 35. Nd5 {[%clk 0:01:50.7]} 35... Bc5 {[%clk
0:01:11.4]} 36. Ra5 {[%clk 0:01:41.3]} 36... Rb8 {[%clk 0:01:11.7]} 37. g4
{[%clk 0:01:38.7]} 37... hxg4 {[%clk 0:01:11.5]} 38. hxg4 {[%clk 0:01:39.7]}
38... Kh6 {[%clk 0:01:12.4]} 39. Kg3 {[%clk 0:01:36.7]} 39... Kg5 {[%clk
0:01:13.5]} 40. Nc7 {[%clk 0:01:34.3]} 40... Rb7 {[%clk 0:00:49.7]} 41. Ne6+
{[%clk 0:01:28.9]} 41... Kf6 {[%clk 0:00:48.9]} 42. Nxc5 {[%clk 0:01:17.2]}
42... dxc5 {[%clk 0:00:49.9]} 43. Kh4 {[%clk 0:01:18.3]} 43... g5+ {[%clk
0:00:48.4]} 44. Kg3 {[%clk 0:01:17.9]} 44... Ke6 {[%clk 0:00:46.8]} 45. Ra6+
{[%clk 0:01:18.5]} 45... Ke7 {[%clk 0:00:46.1]} 46. Rc6 {[%clk 0:01:16.6]} 46...
Kd7 {[%clk 0:00:29.1]} 47. Rxc5 {[%clk 0:01:15.9]} 47... Kd6 {[%clk 0:00:30.4]}
48. Rc8 {[%clk 0:01:16.8]} 48... Kd7 {[%clk 0:00:29.2]} 49. Rg8 {[%clk
0:01:10.2]} 49... b4 {[%clk 0:00:27.8]} 50. Rxg5 {[%clk 0:01:09.2]} 50... Kd6
{[%clk 0:00:21.1]} 51. Rg6+ {[%clk 0:01:09.3]} 51... Kc5 {[%clk 0:00:21.5]} 52.
Re6 {[%clk 0:01:10.1]} 52... bxc3 {[%clk 0:00:22.4]} 53. bxc3 {[%clk 0:01:12]}
53... Rb3 {[%clk 0:00:23.1]} 54. Rxe5+ {[%clk 0:01:13]} 54... Kc6 {[%clk
0:00:24.4]} 55. g5 {[%clk 0:01:10.4]} 55... Rxc3 {[%clk 0:00:25.4]} 56. g6
{[%clk 0:01:11.6]} 56... Rc1 {[%clk 0:00:26.4]} 57. Rg5 {[%clk 0:01:04.1]} 57...
Rg1+ {[%clk 0:00:23.4]} 58. Kf4 {[%clk 0:01:05.2]} 58... Rxg5 {[%clk 0:00:24.3]}
59. Kxg5 {[%clk 0:01:07.1]} 59... c3 {[%clk 0:00:25.8]} 60. g7 {[%clk
0:01:08.8]} 60... c2 {[%clk 0:00:27.3]} 61. g8=Q {[%clk 0:01:10.4]} 61... c1=Q+
{[%clk 0:00:28.2]} 62. Kf5 {[%clk 0:01:05]} 62... Qh1 {[%clk 0:00:26.7]} 63.
Qg6+ {[%clk 0:01:02.8]} 63... Kc5 {[%clk 0:00:27.7]} 64. f4 {[%clk 0:01:01.5]}
64... Qh3+ {[%clk 0:00:27.5]} 65. Ke5 {[%clk 0:01:01.6]} 65... Qc3+ {[%clk
0:00:26.9]} 66. Ke6 {[%clk 0:00:58.4]} 66... Qb3+ {[%clk 0:00:27.9]} 67. Kf5
{[%clk 0:00:58.4]} 67... Qh3+ {[%clk 0:00:27.1]} 68. Kf6 {[%clk 0:00:54.4]}
68... Qc3+ {[%clk 0:00:27.3]} 69. e5 {[%clk 0:00:54.6]} 69... Kd4 {[%clk
0:00:25.2]} 70. f5 {[%clk 0:00:50.1]} 70... Qc6+ {[%clk 0:00:20.7]} 71. e6
{[%clk 0:00:51]} 71... Qc3 {[%clk 0:00:15.1]} 72. Kf7 {[%clk 0:00:41.4]} 72...
Qb3 {[%clk 0:00:15.2]} 73. Qg1+ {[%clk 0:00:37.6]} 73... Ke5 {[%clk 0:00:15.7]}
74. Qg5 {[%clk 0:00:30.8]} 74... Kd6 {[%clk 0:00:13.4]} 75. Qe7+ {[%clk
0:00:29.7]} 75... Ke5 {[%clk 0:00:14.5]} 76. f6 {[%clk 0:00:26.8]} 76... Qe3
{[%clk 0:00:09.5]} 77. Qc7+ {[%clk 0:00:25.3]} 77... Kf5 {[%clk 0:00:10.4]} 78.
Qa5+ {[%clk 0:00:21]} 78... Kg4 {[%clk 0:00:10.6]} 79. Qd5 {[%clk 0:00:18.2]}
79... Qh6 {[%clk 0:00:10.7]} 80. e7 {[%clk 0:00:17.4]} 80... Qh7+ {[%clk
0:00:11.9]} 81. Ke6 {[%clk 0:00:17.6]} 81... Qg8+ {[%clk 0:00:11.7]} 82. Kd6
{[%clk 0:00:17]} 82... Qb8+ {[%clk 0:00:12]} 83. Kd7 {[%clk 0:00:16]} 83... Qa7+
{[%clk 0:00:12.7]} 84. Ke8 {[%clk 0:00:16]} 84... Qb8+ {[%clk 0:00:13.4]} 85.
Kf7 {[%clk 0:00:16.6]} 85... Kh4 {[%clk 0:00:11.3]} 86. e8=Q {[%clk 0:00:16.4]}
86... Qb7+ {[%clk 0:00:11.9]} 87. Qe7 {[%clk 0:00:16.7]} 87... Qxd5+ {[%clk
0:00:12.4]} 88. Kf8 {[%clk 0:00:16.4]} 88... Qa8+ {[%clk 0:00:13.1]} 89. Kg7
{[%clk 0:00:17.1]} 89... Qa1 {[%clk 0:00:13.8]} 90. Kg8 {[%clk 0:00:15.3]} 90...
Qg1+ {[%clk 0:00:13]} 91. Kh8 {[%clk 0:00:14.5]} 91... Qd4 {[%clk 0:00:12.8]}
92. Qh7+ {[%clk 0:00:15.2]} 92... Kg5 {[%clk 0:00:13.3]} 93. Qg7+ {[%clk
0:00:15.9]} 93... Kf5 {[%clk 0:00:13.9]} 94. f7 {[%clk 0:00:17]} 94... Qh4+
{[%clk 0:00:14.6]} 95. Kg8 {[%clk 0:00:18.1]} 95... Qc4 {[%clk 0:00:15.5]} 96.
Qh7+ {[%clk 0:00:16.4]} 96... Kf6 {[%clk 0:00:15.8]} 97. Qg7+ {[%clk 0:00:16.9]}
97... Kf5 {[%clk 0:00:17]} 98. Kh8 {[%clk 0:00:17.9]} 98... Qh4+ {[%clk
0:00:03.5]} 99. Qh7+ {[%clk 0:00:18.5]} 99... Ke6 {[%clk 0:00:04.6]} 100. Qxh4
{[%clk 0:00:17]} 100... Kxf7 {[%clk 0:00:05.9]} 1-0

[Event "*** Titled Tuesday 3|2 Blitz"]
[Site "Chess.com"]
[Date "2015.05.05"]
[Round "8"]
[White "AungTZ"]
[Black "Haykos"]
[Result "1-0"]
[WhiteElo "2153"]
[BlackElo "2179"]
[TimeControl "180+2"]
[EndTime "12:40:23 PDT"]
[Termination "AungTZ won by resignation"]

1. e4 {[%clk 0:03:01.9]} 1... e5 {[%clk 0:02:55.6]} 2. Nf3 {[%clk 0:03:01.8]}
2... Nc6 {[%clk 0:02:56.1]} 3. d4 {[%clk 0:03:02.9]} 3... exd4 {[%clk
0:02:57.1]} 4. Nxd4 {[%clk 0:03:04.1]} 4... g6 {[%clk 0:02:57.7]} 5. Nc3 {[%clk
0:03:03]} 5... Bg7 {[%clk 0:02:58]} 6. Be3 {[%clk 0:03:04.5]} 6... Nge7 {[%clk
0:02:59]} 7. Be2 {[%clk 0:03:05.3]} 7... O-O {[%clk 0:02:55.2]} 8. O-O {[%clk
0:03:05.7]} 8... d6 {[%clk 0:02:41.4]} 9. h3 {[%clk 0:03:06.2]} 9... Nxd4 {[%clk
0:02:40.6]} 10. Bxd4 {[%clk 0:03:06.7]} 10... Bxd4 {[%clk 0:02:42.5]} 11. Qxd4
{[%clk 0:03:06.9]} 11... Nc6 {[%clk 0:02:44.4]} 12. Qd2 {[%clk 0:03:06.8]} 12...
f5 {[%clk 0:02:45.3]} 13. Bc4+ {[%clk 0:03:04.1]} 13... Kg7 {[%clk 0:02:46.1]}
14. f4 {[%clk 0:02:58.6]} 14... fxe4 {[%clk 0:02:44]} 15. Nxe4 {[%clk
0:02:59.2]} 15... Bf5 {[%clk 0:02:45]} 16. Qc3+ {[%clk 0:02:55.2]} 16... Kh6
{[%clk 0:02:45.3]} 17. g4 {[%clk 0:02:40.5]} 17... Bxe4 {[%clk 0:02:26.1]} 18.
g5+ {[%clk 0:02:40]} 18... Kh5 {[%clk 0:02:27.6]} 19. Qg3 {[%clk 0:02:40.9]}
19... Rxf4 {[%clk 0:02:19.5]} 20. Be2+ {[%clk 0:02:30.6]} 20... Bf3 {[%clk
0:02:16]} 21. Rxf3 {[%clk 0:02:31]} 21... Qxg5 {[%clk 0:02:14.3]} 22. Rxf4+
{[%clk 0:02:31.4]} 22... Kh6 {[%clk 0:02:15.8]} 23. Rh4+ {[%clk 0:02:30]} 1-0

[Event "*** Titled Tuesday 3|2 Blitz"]
[Site "Chess.com"]
[Date "2015.05.05"]
[Round "8"]
[White "llamalord42"]
[Black "Recombinant"]
[Result "1-0"]
[WhiteElo "2217"]
[BlackElo "2125"]
[TimeControl "180+2"]
[EndTime "12:40:51 PDT"]
[Termination "llamalord42 won by resignation"]

1. e4 {[%clk 0:03:01.9]} 1... c5 {[%clk 0:02:58.1]} 2. Nf3 {[%clk 0:03:02.7]}
2... d6 {[%clk 0:02:58.7]} 3. d4 {[%clk 0:03:03.8]} 3... cxd4 {[%clk 0:03:00.6]}
4. Nxd4 {[%clk 0:03:05.7]} 4... Nf6 {[%clk 0:03:02]} 5. Nc3 {[%clk 0:03:07.3]}
5... g6 {[%clk 0:03:03.4]} 6. Be2 {[%clk 0:03:08.4]} 6... Bg7 {[%clk 0:03:02.7]}
7. O-O {[%clk 0:03:10]} 7... O-O {[%clk 0:03:04.6]} 8. Bg5 {[%clk 0:03:11.3]}
8... Nc6 {[%clk 0:03:05.6]} 9. Nb3 {[%clk 0:03:12.5]} 9... Be6 {[%clk
0:03:06.3]} 10. f4 {[%clk 0:03:13.6]} 10... Rc8 {[%clk 0:03:06.6]} 11. Kh1
{[%clk 0:03:12.1]} 11... Na5 {[%clk 0:03:02.4]} 12. Nd4 {[%clk 0:03:09.9]} 12...
Bc4 {[%clk 0:03:02.1]} 13. Rf3 {[%clk 0:02:52.9]} 13... Bxe2 {[%clk 0:03:02.4]}
14. Qxe2 {[%clk 0:02:54.2]} 14... Nc4 {[%clk 0:03:02]} 15. b3 {[%clk 0:02:52.1]}
15... Qa5 {[%clk 0:03:01.7]} 16. bxc4 {[%clk 0:02:47.4]} 16... Nd7 {[%clk
0:02:55.8]} 17. Rd1 {[%clk 0:02:39.5]} 17... e5 {[%clk 0:02:49.8]} 18. Nb3
{[%clk 0:02:38.7]} 18... Qb4 {[%clk 0:02:47.6]} 19. Nd5 {[%clk 0:02:19.5]} 19...
Qxc4 {[%clk 0:02:39.2]} 20. Rfd3 {[%clk 0:02:20.5]} 20... Ra8 {[%clk 0:02:26]}
21. Be7 {[%clk 0:02:16]} 21... Rfe8 {[%clk 0:02:24.2]} 22. f5 {[%clk 0:02:17.1]}
22... Bf8 {[%clk 0:02:07.2]} 23. Bxf8 {[%clk 0:02:10.3]} 23... Nxf8 {[%clk
0:02:08.2]} 24. Nf6+ {[%clk 0:02:11]} 1-0